[Event "Romanian Superleague 2022"]
[Site "Oradea"]
[Date "2022.09.29"]
[Round "9.12"]
[White "Barzanu, Iulian"]
[Black "Stoleriu, George"]
[Result "0-1"]
[ECO "E62"]
[WhiteElo "2190"]
[BlackElo "2392"]
[Annotator "TA"]
[PlyCount "98"]
[EventDate "2022.09.21"]
[EventType "team-tourn"]
[EventCountry "ROU"]
[SourceTitle "playchess.com"]
[Source "ChessBase"]
[SourceQuality "1"]
[TimeControl "40/5400+30:1800+30"]

{[%evp 16,98,22,16,35,18,8,-13,0,-14,16,16,20,-2,-11,-15,-18,-14,-11,-12,0,0,5,-32,-36,-62,-37,-87,0,-114,-108,-92,-120,-183,-178,-183,-190,-192,-197,-189,-158,-197,-197,-182,-190,-190,-182,-331,-331,-435,-399,-425,-418,-442,-135,-124,-128,-128,-123,-203,-203,-202,-201,-212,-196,-210,-202,-196,-187,-256,-204,-302,-303,-304,-300,-289,-283,-5146,-5118,-5677,-5202,-1309,-1254,-868,-832]} 1. d4 {[%emt 0:00:17]} Nf6 {[%emt 0:00:05]} 2. Nf3 {[%emt 0:00:13]} g6 {[%emt 0:00:06]} 3. g3 {[%emt 0:01:29]} Bg7 {[%emt 0:00:09]} 4. Bg2 {[%emt 0:00:06]} O-O {[%emt 0:00:04]} 5. O-O {[%emt 0:00:30]} d6 {[%emt 0:00:15]} 6. c4 {[%emt 0:08:15]} c6 {[%emt 0:01:21]} 7. Nc3 {[%emt 0:00:23]} Bf5 $1 {[%emt 0:00:18][%mdl 4] is currently scoring better than 7...Qa5.} 8. Nh4 {[%emt 0:04:01]} Be6 {[%emt 0:00:40]} 9. d5 {[%emt 0:02:09]} Bd7 {[%emt 0:00:04] E62: King's Indian: Fianchetto: 6...c6 and Panno Variation (6...Nc6) without ...a6.} 10. Nf3 {[%emt 0:09:28]} Na6 {[%emt 0:02:57][%cal Bb8a6,Ba6c5,Bc5a4,Ba4c3][%mdl 32]} 11. Nd4 {[%emt 0:03:01][%cal Rd5c6]} cxd5 {[%emt 0:04:38] The position is equal.} 12. cxd5 {[%emt 0:00:37]} Qb6 {[%emt 0:10:06]} 13. Nb3 {[%emt 0:09:14]} Nc5 {[%emt 0:08:21] [#]} 14. h3 $146 {[%emt 0:14:22]} ({Predecessor:} 14. Nxc5 Qxc5 15. Qb3 Qa5 16. Bd2 Qa6 17. Rfc1 Rac8 18. a4 b6 19. h3 Rfd8 20. Nb5 Qb7 21. Be3 Bxb5 22. Qxb5 {1-0 (35) Andersson,U (2520)-Gaertner,M (1977) Bad Wiessee 2014}) 14... Na4 {[%emt 0:08:28]} 15. Be3 {[%emt 0:09:30]} Nxc3 {[%emt 0:06:19]} (15... Nxb2 16. Qc2 Qb4 17. a3 $18 (17. Qxb2 Ne4 $16)) 16. bxc3 {[%emt 0:00:43]} Qa6 {[%emt 0:00:07]} 17. Bd4 {[%emt 0:01:09]} Rfc8 {[%emt 0:05:51]} 18. e4 {[%emt 0:03:18]} Ne8 {[%emt 0:22:43]} 19. f4 {[%emt 0:04:02]} Bxd4+ {[%emt 0:05:59]} 20. cxd4 {[%emt 0:01:14]} Rc3 {[%emt 0:00:29]} 21. Rf3 {[%emt 0:08:18]} ({Better is} 21. Qe1 $1 $15 Qc4 22. Rc1 Rxc1 23. Qxc1) 21... Rac8 {[%emt 0:00:26]} (21... Rxf3 $17 22. Bxf3 (22. Qxf3 Rc8 $15) 22... Rc8) 22. g4 {[%emt 0:04:55]} (22. Nc5 $1 $11 R3xc5 23. dxc5) 22... Ba4 {[%emt 0:03:26] Black has more active pieces.} (22... Rc2 {keeps more tension.} 23. Rf2 Rxf2 24. Kxf2 Rc3) 23. Rxc3 {[%emt 0:07:20]} Rxc3 {[%emt 0:00:08]} 24. Rc1 {[%emt 0:00:14]} (24. Qe1 $17 Rc2 25. Bf1) 24... Bxb3 {[%emt 0:10:30]} 25. axb3 {[%emt 0:00:13] [#]} Rxc1 {[%emt 0:01:14]} 26. Qxc1 $19 {[%emt 0:00:03][%mdl 4096] Endgame KQB-KQN} Qd3 {[%emt 0:00:04][%csl LRb3,LRd4]} 27. Qc8 {[%emt 0:04:52]} Qxd4+ {[%emt 0:00:40]} 28. Kh1 {[%emt 0:00:18]} Kf8 {[%emt 0:00:04] ...Qd1+ is the strong threat.} 29. Qxb7 {[%emt 0:00:11]} Nf6 {[%emt 0:00:58]} 30. e5 {[%emt 0:03:36]} Ne4 {[%emt 0:02:46]} ({Worse is} 30... dxe5 31. Qb8+ Kg7 32. Qxe5 Qxe5 33. fxe5) 31. Qc8+ {[%emt 0:01:26]} (31. exd6 $142 exd6 32. Bxe4 Qxe4+ 33. Kh2) 31... Kg7 {[%emt 0:00:02] [#] ( -> ...Ng3+)} 32. Qc2 {[%emt 0:00:22]} Ng3+ {[%emt 0:01:06]} 33. Kh2 {[%emt 0:00:13]} Qxf4 {[%emt 0:00:08]} 34. exd6 {[%emt 0:00:29] Black must now prevent Qc3+.} Ne4+ {[%emt 0:01:58]} ({Not} 34... Nf1+ 35. Kg1 Ne3 36. Qf2 (36. Qc3+ f6 $11) 36... Qxf2+ 37. Kxf2 Nxg4+ 38. hxg4 $16) (34... Ne2+ $19 {is more deadly.} 35. Kh1 Qf2) 35. Kh1 $17 {[%emt 0:00:45]} Nxd6 {[%emt 0:00:02]} 36. Qc5 {[%emt 0:00:34] Against Qe3} a6 {[%emt 0:00:56]} 37. Qa5 {[%emt 0:00:35]} (37. Qa7 $17) 37... Qe3 {[%emt 0:04:04]} 38. Qxa6 {[%emt 0:00:19]} Qxb3 {[%emt 0:00:04]} 39. Qe2 {[%emt 0:00:19]} Kf8 {[%emt 0:00:35]} 40. Qe5 {[%emt 0:00:00][%cal Re5h8]} f6 {[%emt 0:00:00]} 41. Qf4 {[%emt 0:04:26]} Qb2 {[%emt 0:04:20]} 42. Qa4 {[%emt 0:02:36]} (42. Kg1 {was called for.}) 42... Qe2 {[%emt 0:05:45]} 43. Qb4 {[%emt 0:01:57]} (43. Qf4 $142) 43... Nc4 $19 {[%emt 0:02:08]} 44. Qb8+ {[%emt 0:05:23]} Kg7 {[%emt 0:00:36] aiming for ...Ne3.} 45. Qc7 {[%emt 0:04:19]} Kf7 {[%emt 0:05:25] Threatens to win with ...Ne3.} 46. Qf4 {[%emt 0:00:48]} (46. Qg3) 46... Ne3 {[%emt 0:03:15][%csl Ge3][%cal Re2g2] Black is clearly winning.} 47. Be4 {[%emt 0:03:11]} g5 {[%emt 0:04:09]} 48. Qf3 {[%emt 0:02:27]} Qe1+ {[%emt 0:00:19]} 49. Kh2 {[%emt 0:00:22]} Nf1+ {[%emt 0:00:02] Weighted Error Value: White=0.63/Black=0.30} 0-1

[Event "Romanian Superleague 2022"]
[Site "Oradea"]
[Date "2022.09.29"]
[Round "9.13"]
[White "Pranav Vijay"]
[Black "Efimenko, Zahar"]
[Result "1-0"]
[ECO "C90"]
[WhiteElo "2265"]
[BlackElo "2599"]
[Annotator "TA"]
[PlyCount "111"]
[EventDate "2022.09.21"]
[EventType "team-tourn"]
[EventCountry "ROU"]
[SourceTitle "playchess.com"]
[Source "ChessBase"]
[SourceQuality "1"]
[TimeControl "40/5400+30:1800+30"]

{[%evp 27,111,13,0,0,24,-24,21,24,24,17,24,3,4,0,0,0,0,0,20,0,0,0,15,15,15,15,15,15,20,6,25,19,27,24,27,0,0,0,28,27,62,69,68,55,80,31,31,31,45,45,53,53,58,24,47,36,39,39,62,24,51,22,131,35,38,0,68,64,68,47,114,115,145,145,175,169,150,143,176,149,271,247,765,711,29996,29997]} 1. e4 {[%emt 0:00:03]} e5 {[%emt 0:00:46]} 2. Nf3 {[%emt 0:00:08]} Nc6 {[%emt 0:00:07]} 3. Bb5 {[%emt 0:00:07]} a6 {[%emt 0:00:10]} 4. Ba4 {[%emt 0:00:06]} Nf6 {[%emt 0:00:11]} 5. O-O {[%emt 0:00:08]} Be7 {[%emt 0:00:16]} 6. d3 {[%emt 0:00:06]} b5 {[%emt 0:00:35]} 7. Bb3 {[%emt 0:00:06]} d6 {[%emt 0:00:25]} 8. c3 {[%emt 0:00:06]} O-O {[%emt 0:00:48]} 9. h3 {[%emt 0:00:10]} Na5 {[%emt 0:02:24]} 10. Bc2 {[%emt 0:00:07]} c5 {[%emt 0:00:06]} 11. Re1 {[%emt 0:00:08]} Re8 {[%emt 0:07:10]} 12. Nbd2 {[%emt 0:02:14]} Nc6 {[%emt 0:02:24]} 13. Nf1 {[%emt 0:01:30] 13.a4 is the hot move.} h6 {[%emt 0:00:56]} 14. Ng3 {[%emt 0:10:03]} Be6 {[%emt 0:00:33]} 15. a4 {[%emt 0:02:08] C90: Closed Ruy Lopez with 7...d6: Early deviations.} b4 {[%emt 0:09:17]} 16. Bb3 {[%emt 0:08:47] [#]} (16. d4 {feels stronger.} exd4 17. cxd4 cxd4 18. Nxd4 Nxd4 19. Qxd4) 16... bxc3 $146 {[%emt 0:03:16]} ({Predecessor:} 16... Bxb3 17. Qxb3 bxc3 18. bxc3 Rb8 19. Qa2 Bf8 20. Bd2 Na5 21. Rab1 c4 22. dxc4 Rxb1 23. Rxb1 {0-1 (61) Schramm,C (2371)-Nyback,T (2571) Germany 2019}) 17. Bxe6 {[%emt 0:02:07] The position is equal.} fxe6 {[%emt 0:00:05]} 18. bxc3 {[%emt 0:00:11]} Rb8 {[%emt 0:00:12]} 19. Nf1 {[%emt 0:05:58]} Qb6 {[%emt 0:05:17]} 20. N1d2 {[%emt 0:04:16]} Na5 {[%emt 0:02:09]} 21. Qc2 {[%emt 0:01:21]} Qc6 {[%emt 0:02:33]} 22. Qa2 {[%emt 0:06:29]} c4 {[%emt 0:02:15]} 23. dxc4 {[%emt 0:05:31][%cal Oc4c5]} Nd7 {[%emt 0:03:10]} 24. Ba3 {[%emt 0:00:43]} Nb7 {[%emt 0:04:27]} 25. a5 {[%emt 0:01:55]} Nbc5 {[%emt 0:09:42]} 26. Qc2 {[%emt 0:05:08]} Rf8 {[%emt 0:00:48]} 27. Rab1 {[%emt 0:04:24]} Rxb1 {[%emt 0:04:49]} 28. Rxb1 {[%emt 0:00:13]} Bd8 {[%emt 0:00:07]} 29. Bb4 {[%emt 0:00:55]} Nb7 {[%emt 0:02:50]} 30. Ra1 {[%emt 0:06:45]} Nbc5 {[%emt 0:00:31]} 31. Re1 {[%emt 0:01:56]} Nb7 {[%emt 0:02:02]} 32. Ra1 {[%emt 0:02:39]} Nbc5 {[%emt 0:00:25]} 33. Qd1 {[%emt 0:01:37]} Nf6 {[%emt 0:10:14]} 34. Bxc5 {[%emt 0:06:59]} Qxc5 {[%emt 0:00:11]} 35. Ne1 {[%emt 0:00:25][%cal Bf3e1,Be1d3,Bd3b4][%mdl 32]} Qc6 {[%emt 0:08:35]} 36. Qe2 {[%emt 0:03:36]} (36. Qa4 $16 Qxa4 37. Rxa4) 36... Nd7 $14 {[%emt 0:01:26]} 37. Nd3 {[%emt 0:00:27]} Bg5 {[%emt 0:03:06]} 38. Nb4 {[%emt 0:01:27]} Qb7 {[%emt 0:00:08]} 39. Nb3 {[%emt 0:04:17][%cal Oc4c5]} Rc8 {[%emt 0:00:50] Prevents c5.} 40. h4 {[%emt 0:00:00]} (40. c5 $5) 40... Be7 {[%emt 0:00:00]} 41. Nd2 {[%emt 0:08:31]} Nc5 {[%emt 0:04:47]} 42. g3 {[%emt 0:00:44]} Bd8 {[%emt 0:02:40]} 43. Kg2 {[%emt 0:01:45]} Qc7 {[%emt 0:09:12]} 44. Nd3 {[%emt 0:02:33]} Nb7 {[%emt 0:03:16] [#]} (44... Rb8 $11) 45. Qg4 {[%emt 0:10:41]} (45. c5 $1 $16) 45... Qd7 {[%emt 0:04:26]} 46. f4 {[%emt 0:09:06]} Nxa5 {[%emt 0:01:32]} (46... exf4 $11 47. gxf4 Kh8) 47. fxe5 {[%emt 0:02:12]} dxe5 {[%emt 0:02:43]} 48. Ra2 {[%emt 0:00:10]} (48. Kh3 $5 {[%cal Rd3e5]}) 48... h5 {[%emt 0:07:16]} ({Better is} 48... Qe8 $14) 49. Qe2 $16 {[%emt 0:00:25]} Bc7 {[%emt 0:05:50]} 50. Nb4 {[%emt 0:00:14]} Bb6 {[%emt 0:02:42]} 51. Nxa6 {[%emt 0:01:42]} ({Don't do} 51. Qxh5 $6 Be3 $16) 51... Nb7 {[%emt 0:01:59]} 52. Nb4 {[%emt 0:04:51] Pair of Knights!} Nc5 {[%emt 0:02:34]} 53. Qxh5 {[%emt 0:00:45]} Rf8 {[%emt 0:00:04] [#]} (53... Qf7 $16 {was worth a try.} 54. Qe2 Rf8) 54. Nf3 $1 $18 {[%emt 0:00:38]} Qd1 $2 {[%emt 0:01:44]} (54... Nxe4 55. Qxe5 Nc5) 55. Nc6 {[%emt 0:00:07][%cal Rc6e7]} Qd6 {[%emt 0:01:12] [#] Prevents Ne7+.} 56. Ng5 $1 {[%emt 0:00:04] Weighted Error Value: White=0.12 (very precise) /Black=0.36} 1-0

[Event "Romanian Superleague 2022"]
[Site "Oradea"]
[Date "2022.09.29"]
[Round "9.14"]
[White "Baklan, Vladimir"]
[Black "Grigore, George-Gabriel"]
[Result "1/2-1/2"]
[ECO "B31"]
[WhiteElo "2578"]
[BlackElo "2455"]
[Annotator "TA"]
[PlyCount "51"]
[EventDate "2022.09.21"]
[EventType "team-tourn"]
[EventCountry "ROU"]
[SourceTitle "playchess.com"]
[Source "ChessBase"]
[SourceQuality "1"]
[TimeControl "40/5400+30:1800+30"]

{[%evp 12,51,22,8,33,6,32,32,32,35,41,40,40,31,50,31,48,20,24,25,26,30,39,34,24,33,20,16,29,0,18,0,10,0,29,-3,21,15,21,12,28,-9]} 1. e4 {[%emt 0:00:04]} c5 {[%emt 0:00:22]} 2. Nf3 {[%emt 0:00:03]} Nc6 {[%emt 0:00:19]} 3. Bb5 {[%emt 0:00:07]} g6 {[%emt 0:00:10]} 4. Bxc6 {[%emt 0:00:04]} dxc6 {[%emt 0:00:18]} 5. d3 {[%emt 0:00:08]} Bg7 {[%emt 0:00:13]} 6. h3 {[%emt 0:00:07]} Nf6 {[%emt 0:00:13]} 7. Nc3 {[%emt 0:00:15]} O-O {[%emt 0:01:20][%cal Oe7e5] B31: Sicilian: 2...Nc6 3 Bb5 g6.} 8. Bf4 {[%emt 0:02:12]} Nd7 {[%emt 0:04:18]} (8... Nh5 $5 {[%cal Rh5f4]} 9. Be3 Qd6 $11) 9. Qd2 {[%emt 0:04:48]} e5 {[%emt 0:00:57] White is slightly better.} 10. Bh6 {[%emt 0:00:03]} f6 {[%emt 0:01:39]} 11. Bxg7 {[%emt 0:06:02]} Kxg7 {[%emt 0:00:16]} 12. Nh2 {[%emt 0:00:02] [#]} Rf7 $146 {[%emt 0:04:37]} ({Predecessor:} 12... Rh8 13. O-O-O Nf8 14. f4 exf4 15. Qxf4 Ne6 16. Qf2 Qd4 17. Qg3 Ng5 18. h4 Nf7 {1-0 (31) Nedev,T (2482)-Kiroski,T (2285) Skopje 2015}) 13. Ne2 {[%emt 0:12:44]} Nf8 {[%emt 0:05:56]} 14. f4 {[%emt 0:00:29]} ({Much weaker is} 14. Ng4 Bxg4 15. hxg4 Kg8 $11) 14... exf4 {[%emt 0:00:19]} 15. Nxf4 {[%emt 0:00:44]} Qd6 {[%emt 0:05:53]} 16. O-O-O {[%emt 0:10:49]} Bd7 {[%emt 0:01:01]} 17. Nf3 {[%emt 0:05:26]} Re8 {[%emt 0:01:13]} 18. Rhe1 {[%emt 0:03:31]} Bc8 {[%emt 0:02:41]} 19. g4 {[%emt 0:06:30]} Kg8 {[%emt 0:01:29]} 20. Re2 {[%emt 0:03:55]} Nd7 {[%emt 0:03:30]} 21. Rf1 {[%emt 0:03:29]} Ne5 {[%emt 0:04:27]} 22. Ng2 {[%emt 0:04:12]} Be6 {[%emt 0:06:44]} 23. Ne3 {[%emt 0:08:12]} Rd8 {[%emt 0:05:16]} 24. Qc3 {[%emt 0:03:33]} Nxf3 {[%emt 0:01:22]} 25. Rxf3 {[%emt 0:00:07]} Qd4 {[%emt 0:00:15]} 26. a3 {[%emt 0:05:35] Weighted Error Value: White=0.10 (very precise) /Black=0.12 (very precise)} 1/2-1/2

[Event "Romanian Superleague 2022"]
[Site "Oradea"]
[Date "2022.09.29"]
[Round "9.15"]
[White "Vedmediuc, Serghei"]
[Black "Nanu, Costica-Ciprian"]
[Result "1/2-1/2"]
[ECO "B12"]
[WhiteElo "2430"]
[BlackElo "2518"]
[Annotator "TA"]
[PlyCount "127"]
[EventDate "2022.09.21"]
[EventType "team-tourn"]
[EventCountry "ROU"]
[SourceTitle "playchess.com"]
[Source "ChessBase"]
[SourceQuality "1"]
[TimeControl "40/5400+30:1800+30"]

{[%evp 12,127,26,33,32,30,46,12,35,14,27,20,20,13,78,53,46,57,99,82,100,50,50,49,46,57,45,39,51,34,44,35,31,53,41,6,25,6,6,0,22,26,24,16,39,0,0,0,0,0,18,23,41,0,0,-8,-8,-28,-34,-39,-39,-39,-13,-26,0,0,0,-14,0,0,0,-8,-8,-8,-8,-8,0,0,0,0,0,-8,-8,-8,0,0,0,0,0,0,0,0,0,0,0,0,0,0,0,0,0,0,0,0,0,0,0,0,0,0,0,0,0,0,0,0,0,0]} 1. e4 {[%emt 0:00:04]} c6 {[%emt 0:00:50]} 2. d4 {[%emt 0:00:07]} d5 {[%emt 0:00:04]} 3. e5 {[%emt 0:00:05]} Bf5 {[%emt 0:00:06]} 4. Nf3 {[%emt 0:00:14]} e6 {[%emt 0:00:10]} 5. Be2 {[%emt 0:00:08]} Nd7 {[%emt 0:00:10]} 6. O-O {[%emt 0:00:19]} h6 {[%emt 0:00:03]} 7. Nbd2 {[%emt 0:28:37]} Ne7 {[%emt 0:00:18] B12: Caro-Kann: Advance Variation.} 8. Nb3 {[%emt 0:02:15]} Qc7 {[%emt 0:00:28]} 9. Bd2 {[%emt 0:06:47]} a5 {[%emt 0:01:07]} 10. a4 {[%emt 0:00:52]} g5 {[%emt 0:00:05]} 11. Rc1 {[%emt 0:08:50]} Bg7 {[%emt 0:00:40]} 12. Ne1 {[%emt 0:09:39]} b6 {[%emt 0:15:09] [#]} (12... O-O $11 {keeps the balance.}) 13. c4 $146 {[%emt 0:08:48]} ({Predecessor:} 13. f4 gxf4 14. Bxf4 Ng6 15. Be3 O-O 16. c4 dxc4 17. Rxc4 Be4 18. Qc1 Qd8 19. Bxh6 {1-0 (39) Vehi Bach,V (2313)-Coll Ortega,J (2295) Catalunya 2014}) 13... dxc4 {[%emt 0:01:38]} 14. Bxc4 {[%emt 0:00:26]} Qb8 {[%emt 0:02:04]} 15. f4 {[%emt 0:04:37]} gxf4 {[%emt 0:06:09]} 16. Bd3 {[%emt 0:05:11]} (16. Bxf4 $16 Qa7 17. Bd3) 16... c5 $14 {[%emt 0:12:48]} 17. Bb5 {[%emt 0:01:20][%cal Rd4c5]} Ra7 {[%emt 0:08:00]} 18. Bxf4 {[%emt 0:04:52][%cal Rd4c5]} O-O {[%emt 0:01:17]} 19. Nf3 {[%emt 0:01:30]} Ng6 {[%emt 0:07:25]} 20. Bg3 {[%emt 0:01:31]} (20. dxc5 Nxf4 21. Qd2 Nd5 $17) 20... Be4 {[%emt 0:01:14]} 21. dxc5 {[%emt 0:03:01]} Nxc5 {[%emt 0:01:05]} 22. Nxc5 {[%emt 0:01:18]} bxc5 {[%emt 0:00:04]} 23. Rxc5 {[%emt 0:00:13]} Rc7 {[%emt 0:01:05]} 24. Rxc7 {[%emt 0:03:06]} Qxc7 {[%emt 0:00:05]} 25. Qd6 {[%emt 0:00:23]} Qc2 {[%emt 0:01:10]} 26. b4 {[%emt 0:02:46]} axb4 {[%emt 0:00:59]} 27. Qxb4 {[%emt 0:00:22]} Bd5 {[%emt 0:03:08][%cal Og6e5]} (27... Nxe5 $2 28. Ne1 Qb1 29. Qxb1 Bxb1 30. Bxe5 $18) 28. Qg4 {[%emt 0:02:26]} Rc8 {[%emt 0:01:12]} 29. h4 {[%emt 0:00:37][%cal Bh2h4,Bh4h5][%mdl 32]} Rc3 {[%emt 0:12:37]} 30. h5 {[%emt 0:00:22]} Bxf3 {[%emt 0:01:51][%mdl 64] [#] Remove Defender} 31. Rxf3 {[%emt 0:03:16]} Rxf3 {[%emt 0:22:59]} 32. Qxf3 {[%emt 0:00:37]} (32. gxf3 $5 {[%cal Rh5g6]} Nxe5 33. Qe4 $14 (33. Bxe5 Qc5+ 34. Qd4 Qxd4+ 35. Bxd4 Bxd4+ 36. Kg2 Bb6 $11)) 32... Nxe5 {[%emt 0:00:00]} 33. Qe2 {[%emt 0:00:22]} Qf5 {[%emt 0:00:00]} 34. Bxe5 {[%emt 0:00:58]} Bxe5 $11 {[%emt 0:00:00][%mdl 4096] Endgame KQB-KQB} 35. Bd3 {[%emt 0:00:25]} Qf4 {[%emt 0:00:00]} 36. Qe4 {[%emt 0:01:11]} Qc1+ {[%emt 0:00:00]} (36... Qg5 $5 {[%cal Re5g3]}) 37. Kf2 {[%emt 0:00:10]} Qb2+ {[%emt 0:00:00]} 38. Kf3 {[%emt 0:00:05] The position is equal.} Kf8 {[%emt 0:00:00]} 39. Qa8+ {[%emt 0:00:38]} Kg7 {[%emt 0:00:00]} 40. Qe4 {[%emt 0:00:00]} f5 {[%emt 0:00:00]} 41. Qc4 {[%emt 0:02:18]} Qb7+ {[%emt 0:00:00]} 42. Kf2 {[%emt 0:00:34]} Qb6+ {[%emt 0:00:00]} 43. Kf3 {[%emt 0:00:21]} Bd4 {[%emt 0:00:00]} ({Of course not} 43... Qb7+ $6 44. Kf2 $15) 44. Qb5 {[%emt 0:03:34]} Qa7 {[%emt 0:03:49]} 45. g4 {[%emt 0:02:37]} Qa8+ {[%emt 0:00:59]} 46. Kg3 {[%emt 0:00:26] [#] Threatens to win with Qd7+.} Kf6 {[%emt 0:01:46][%cal Of5f4] ( -> ...f4+!)} 47. gxf5 {[%emt 0:09:32]} Be5+ {[%emt 0:01:52]} 48. Kf2 {[%emt 0:00:32]} Bd4+ {[%emt 0:01:23]} 49. Ke1 {[%emt 0:03:28]} (49. Kg3 Qh1 50. Qd7 Qe1+ 51. Kh3 (51. Kg4 {is a self mate.} Qd1+ 52. Kf4 Qd2+ 53. Kg3 Qxd3+ 54. Kh2 Qe2+ 55. Kh3 Qf1+ 56. Kg3 Be5+ 57. Kh4 Qf4+ 58. Kh3 Qg3#) 51... Qe3+ 52. Kg4 Qg5+ 53. Kh3 Qe3+ 54. Kg4 Qg5+ 55. Kh3 Qe3+ $11) 49... Qf3 {[%emt 0:08:12][%cal Rd4c3]} 50. Qc4 {[%emt 0:03:33][%csl LRd4,LRe6] Against Bc3+} Qh1+ {[%emt 0:08:36]} 51. Kd2 {[%emt 0:00:25] Dancing on a razor blade.} Qh2+ {[%emt 0:00:22]} 52. Be2 {[%emt 0:03:17]} Qf4+ {[%emt 0:00:12]} 53. Kd1 {[%emt 0:00:19]} Kxf5 {[%emt 0:03:29]} 54. Qc2+ {[%emt 0:01:34]} Kf6 {[%emt 0:00:41]} (54... Qe4 $2 55. Bd3 Qxd3+ 56. Qxd3+ $18) 55. Qg6+ {[%emt 0:00:32]} Ke7 {[%emt 0:00:05]} 56. Qh7+ {[%emt 0:00:12]} Kd6 {[%emt 0:00:08]} 57. Qb7 {[%emt 0:00:21]} Be5 {[%emt 0:01:59]} 58. Qb6+ {[%emt 0:01:02]} Ke7 {[%emt 0:00:12]} 59. Qb7+ {[%emt 0:00:07]} Bc7 {[%emt 0:00:19]} 60. Qb5 {[%emt 0:01:17]} Qd4+ {[%emt 0:00:23]} 61. Kc2 {[%emt 0:00:11]} Be5 {[%emt 0:01:22]} 62. Qb7+ {[%emt 0:01:20]} Kf6 {[%emt 0:00:05] aiming for ...Qc3+.} 63. Qf3+ {[%emt 0:00:09]} ({Much weaker is} 63. Qh7 Qc3+ 64. Kd1 Qa1+ 65. Kc2 Qc3+ 66. Kd1 Qd4+ 67. Qd3 Qxa4+ 68. Qc2 Qd7+ 69. Qd2 Qa4+ 70. Qc2 Qd4+ 71. Qd3 Qa1+ 72. Kc2 Ke7 $15) 63... Bf4 {[%emt 0:00:09]} 64. Qc3 {[%emt 0:00:17] Weighted Error Value: White=0.06 (flawless) /Black=0.07 (flawless)} 1/2-1/2